fUSD/lending_fUSD_20250222
["ID","MTS","AMOUNT","RATE_DAILY","PERIOD"]
[354030067,1740185438815,-500.0,0.00012758,2]
[354030068,1740185438824,-2111.25,0.00012758,2]
[354030069,1740185438833,-544.81516774,0.00012758,2]
[354030070,1740185438842,-150.44,0.00012796,2]
[354030071,1740185438852,-1774.27,0.00012796,2]
[354030072,1740185438861,-500.0,0.00012841,2]
[354030073,1740185438870,-2111.25,0.00012841,2]
[354030074,1740185438879,-1569.639,0.00012894,2]
[354030075,1740185438889,-1424.0,0.00012894,2]
[354030076,1740185438898,-3919.0,0.00012894,2]
[354030077,1740185439061,-150.0,0.00012894,2]
[354030078,1740185439071,-1110.0,0.00012894,2]
[354030079,1740185439080,-500.0,0.00012923,2]
[354030080,1740185439090,-2111.25,0.00012923,2]
[354030081,1740185439099,-1000.0,0.00013,2]
[354030082,1740185439110,-500.0,0.00013005,2]
[354030083,1740185439119,-2111.25,0.00013005,2]
[354030084,1740185439129,-1000.0,0.0001301,2]
[354030085,1740185439139,-337.95,0.00013079,2]
[354030086,1740185439148,-500.0,0.00013087,2]
[354030087,1740185439158,-2111.25,0.00013087,2]
[354030088,1740185439167,-293.0,0.00013123,2]
[354030089,1740185439177,-176.25,0.00013169,2]
[354030090,1740185439187,-2111.25,0.00013169,2]
[354030091,1740185439197,-2111.25,0.00013252,2]
[354030092,1740185439207,-3711.926,0.0001327,2]
[354030093,1740185439216,-157.94,0.0001327,2]
[354030094,1740185439227,-800.0,0.00013318,2]
[354030095,1740185439236,-1023.40662833,0.00013328,2]
[354030096,1740185439246,-1014.21522789,0.00013328,2]
[354030097,1740185439255,-600.2252309,0.00013328,2]
[354030098,1740185439266,-2111.25,0.00013334,2]
[354030099,1740185439275,-156.374567,0.00013424,2]
[354030100,1740185439284,-158.723038,0.00013424,2]
[354030101,1740185439294,-153.776904,0.00013424,2]
[354030102,1740185439304,-153.776897,0.00013424,2]
[354030103,1740185439313,-153.776897,0.00013424,2]
[354030104,1740185439322,-500.0,0.00013491,2]
[354030105,1740185439332,-2000.0,0.00013491,2]
[354030106,1740185439342,-500.0,0.00013491,2]
[354030107,1740185439351,-200.0,0.00013491,2]
[354030108,1740185439360,-3000.00000099,0.000135,2]
[354030109,1740185439370,-701.62,0.00013599,2]
[354030110,1740185439379,-500.0,0.00013599,2]
[354030111,1740185439388,-90197.89352697,0.000136,2]
[354030113,1740185439539,-4381.89421095,0.000136,2]
[354030114,1740185439550,-2033.399527,0.000136,2]
[354030115,1740185439566,-4931.61992374,0.000136,2]
[354030116,1740185440044,-268.90730465,0.00011443,2]
[354030118,1740185440084,-231.09269535,0.00011443,2]
[354030119,1740185440093,-500.0,0.00011443,2]
[354030120,1740185440103,-184.8,0.00011443,2]
[354030121,1740185440112,-500.0,0.00011526,2]
[354030122,1740185440122,-601.27,0.00011608,2]
[354030123,1740185440131,-2873.80608641,0.000136,2]
[354030147,1740185445346,-500.0,0.00011443,2]
[354030148,1740185445356,-500.0,0.00011443,2]
[354030149,1740185445366,-500.0,0.00011526,2]
[354030150,1740185445379,-230.11214978,0.00011526,2]
[354030151,1740185445391,-269.88785022,0.00011526,2]
[354030152,1740185445401,-60.08035778,0.00011608,2]
[354030153,1740185445412,-439.91964222,0.00011608,2]
[354030154,1740185445422,-500.0,0.0001169,2]
[354030155,1740185445432,-500.0,0.00011772,2]
[354030156,1740185445441,-500.0,0.00011854,2]
[354030157,1740185445450,-500.0,0.00011936,2]
[354030158,1740185445460,-500.0,0.00012019,2]
[354030159,1740185445470,-396.28035778,0.00012101,2]
[354030160,1740185445488,-500.0,0.00011608,2]
[354030161,1740185445498,-103.71964222,0.00012101,2]
[354030162,1740185445507,-396.28035778,0.00012183,2]
[354030163,1740185445518,-103.71964222,0.00012183,2]
[354030164,1740185445527,-604.28346448,0.00012265,2]
[354030165,1740185445536,-3856.84604986,0.000136,2]
[354030166,1740185445545,-200.67657051,0.000136,2]
[354030167,1740185445554,-167.0,0.000136,2]
[354030168,1740185445563,-4000.0,0.000136,2]
[354030169,1740185445574,-2500.0,0.000136,4]
[354030170,1740185445583,-439.11,0.00013604,2]
[354030171,1740185445592,-1000.0,0.00013685,2]
[354030172,1740185445602,-1000.0,0.00013685,2]
[354030173,1740185445611,-1000.0,0.00013685,2]
[354030174,1740185445621,-1000.0,0.00013685,2]
[354030175,1740185445632,-1000.0,0.00013685,2]
[354030176,1740185445641,-1000.0,0.00013685,2]
[354030177,1740185445651,-1000.0,0.00013685,2]
[354030178,1740185445660,-1000.0,0.00013685,2]
[354030179,1740185445670,-1000.0,0.00013685,2]
[354030180,1740185445679,-1000.0,0.00013685,2]
[354030181,1740185445688,-1000.0,0.00013685,2]
[354030182,1740185445697,-1000.0,0.00013685,2]
[354030183,1740185445706,-1000.0,0.00013685,2]
[354030184,1740185445715,-1000.0,0.00013685,2]
[354030185,1740185445725,-1000.0,0.00013685,2]
[354030186,1740185445735,-1000.0,0.00013685,2]
[354030187,1740185445745,-1000.0,0.00013685,2]
[354030188,1740185445754,-1000.0,0.00013685,2]
[354030189,1740185445764,-1000.0,0.00013685,2]
[354030190,1740185445773,-1000.0,0.00013685,2]
[354030191,1740185445786,-27865.44249311,0.00013697,2]
[354030192,1740185445798,-12029.63586006,0.00013697,2]
[354030211,1740186631793,-550.0,0.0001,2]
[354030212,1740186631802,-150.0,0.00010157,2]
[354030213,1740186631812,-1057.77,0.00010314,2]
[354030214,1740186631822,-150.0,0.00010928,2]
[354030215,1740186631831,-150.0,0.00011,2]
[354030216,1740186631840,-150.0,0.00011441,2]
[354030217,1740186631850,-500.0,0.00011442,2]
[354030218,1740186631859,-545.8,0.00011442,2]
[354030219,1740186631868,-500.0,0.00011442,2]
[354030220,1740186631877,-634.83793115,0.00011442,2]
[354030221,1740186631887,-532.62,0.00011442,2]
[354030222,1740186631896,-500.0,0.00011442,2]
[354030223,1740186631905,-500.0,0.00011442,2]
[354030224,1740186631914,-500.0,0.00011442,2]
[354030225,1740186631923,-500.0,0.00011442,2]
[354030226,1740186631932,-500.0,0.00011442,2]
[354030227,1740186631942,-500.0,0.00011442,2]
[354030228,1740186631951,-613.64,0.00011442,2]
[354030229,1740186631962,-500.0,0.00011442,2]
[354030230,1740186631971,-500.0,0.00011442,2]
[354030231,1740186631980,-500.0,0.00011442,2]
[354030232,1740186631989,-500.0,0.00011442,2]
[354030233,1740186631999,-500.0,0.00011442,2]
[354030234,1740186632008,-500.0,0.00011442,2]
[354030235,1740186632017,-500.0,0.00011442,2]
[354030236,1740186632027,-500.0,0.00011442,2]
[354030237,1740186632036,-500.0,0.00011442,2]
[354030238,1740186632045,-500.0,0.00011442,2]
[354030239,1740186632054,-500.0,0.00011442,2]
[354030240,1740186632063,-500.0,0.00011442,2]
[354030241,1740186632072,-500.0,0.00011442,2]
[354030242,1740186632081,-500.0,0.00011443,2]
[354030244,1740186632090,-247.10239051,0.00011443,2]
[354030246,1740186632100,-500.0,0.00011443,2]
[354030248,1740186632109,-500.0,0.00011443,2]
[354030250,1740186632118,-500.0,0.00011443,2]
[354030252,1740186632127,-500.0,0.00011443,2]
[354030254,1740186632136,-500.0,0.00011443,2]
[354030256,1740186632145,-500.0,0.00011443,2]
[354030258,1740186632154,-500.0,0.00011443,2]
[354030260,1740186632164,-500.0,0.00011443,2]
[354030261,1740186632176,-262.1,0.00011443,2]
[354030263,1740186632185,-247.03709033,0.00011443,2]
[354030265,1740186632194,-500.0,0.00011443,2]
[354030267,1740186632203,-500.0,0.00011443,2]
[354030269,1740186632214,-500.0,0.00011443,2]
[354030271,1740186632223,-500.0,0.00011443,2]
[354030273,1740186632232,-521.39729997,0.00011443,2]
[354030275,1740186632241,-500.0,0.00011443,2]
[354030278,1740186632251,-500.0,0.00011443,2]
[354030280,1740186632260,-500.0,0.00011443,2]
[354030282,1740186632269,-500.0,0.00011443,2]
[354030284,1740186632278,-500.0,0.00011443,2]
[354030286,1740186632287,-581.26,0.00011443,2]
[354030288,1740186632296,-500.0,0.00011443,2]
[354030290,1740186632305,-626.42000713,0.00011443,2]
[354030292,1740186632314,-500.0,0.00011443,2]
[354030294,1740186632323,-563.08,0.00011443,2]
[354030296,1740186632332,-500.0,0.00011443,2]
[354030298,1740186632342,-500.0,0.00011443,2]
[354030300,1740186632351,-500.0,0.00011443,2]
[354030302,1740186632360,-500.0,0.00011524,2]
[354030304,1740186632369,-500.0,0.00011524,2]
[354030306,1740186632378,-514.86,0.00011524,2]
[354030327,1740186632575,-500.0,0.00011524,2]
[354030329,1740186632584,-631.11,0.00011524,2]
[354030331,1740186632593,-500.0,0.00011524,2]
[354030333,1740186632603,-500.0,0.00011524,2]
[354030335,1740186632611,-500.0,0.00011524,2]
[354030337,1740186632620,-500.0,0.00011524,2]
[354030339,1740186632629,-500.0,0.00011524,2]
[354030341,1740186632638,-500.0,0.00011524,2]
[354030343,1740186632647,-500.0,0.00011524,2]
[354030345,1740186632656,-610.11,0.00011524,2]
[354030347,1740186632665,-500.0,0.00011524,2]
[354030349,1740186632674,-542.18,0.00011524,2]
[354030351,1740186632683,-500.0,0.00011526,2]
[354030353,1740186632692,-151.03,0.00011526,2]
[354030355,1740186632701,-500.0,0.00011526,2]
[354030357,1740186632710,-600.17,0.00011526,2]
[354030359,1740186632719,-45096.07,0.00011526,2]
[354030361,1740186632729,-4186.9,0.00011526,2]
[354030363,1740186632737,-150.99,0.00011526,2]
[354030365,1740186632746,-3222.07,0.00011526,2]
[354030367,1740186632755,-500.0,0.00011607,2]
[354030369,1740186632764,-500.0,0.00011607,2]
[354030371,1740186632773,-500.0,0.00011607,2]
[354030373,1740186632782,-500.0,0.00011607,2]
[354030375,1740186632792,-500.0,0.00011607,2]
[354030377,1740186632801,-510.26,0.00011607,2]
[354030379,1740186632810,-500.0,0.00011607,2]
[354030381,1740186632819,-325.62,0.00011607,2]
[354030383,1740186632828,-151.56,0.00011607,2]
[354030385,1740186632837,-6469.11,0.00011633,2]
[354030387,1740186632846,-150.0,0.00011634,2]
[354030389,1740186632855,-500.0,0.00011689,2]
[354030391,1740186632863,-500.0,0.00011689,2]
[354030393,1740186632872,-500.0,0.00011689,2]
[354030395,1740186632881,-500.0,0.00011689,2]
[354030397,1740186632890,-500.0,0.00011689,2]
[354030399,1740186632900,-500.0,0.00011689,2]
[354030401,1740186632908,-555.85,0.00011689,2]
[354030403,1740186632918,-449.7,0.00011771,2]
[354030405,1740186632927,-153.5,0.00011771,2]
[354030407,1740186632936,-500.0,0.00011771,2]
[354030409,1740186632945,-500.0,0.00011771,2]
[354030411,1740186632954,-500.0,0.00011771,2]
[354030413,1740186632964,-514.19947606,0.00011771,2]
[354030415,1740186632973,-450.21,0.0001179,2]
[354030417,1740186632982,-500.0,0.00011853,2]
[354030418,1740186632992,-599.93,0.00011853,2]
[354030420,1740186633002,-500.0,0.00011853,2]
[354030422,1740186633011,-2000.0,0.00011889,2]
[354030424,1740186633020,-1060.0,0.00011915,2]
[354030426,1740186633030,-1000.0,0.00011927,2]
[354030428,1740186633039,-500.0,0.00011935,2]
[354030431,1740186633049,-344.58,0.00011935,2]
[354030432,1740186633058,-800.0,0.00011948,2]
[354030435,1740186633067,-500.0,0.00011948,2]
[354030437,1740186633077,-600.0,0.00012,2]
[354030439,1740186633087,-168.42,0.00012018,2]
[354030441,1740186633096,-23900.0,0.00012217,2]
[354030443,1740186633106,-238.77752274,0.00012217,2]
[354030445,1740186633115,-160.59,0.000124,2]
[354030447,1740186633124,-150.0,0.00012403,2]
[354030448,1740186633134,-150.43090772,0.00012403,2]
[354030451,1740186633143,-150.0,0.00012403,2]
[354030452,1740186633152,-150.0,0.00012403,2]
[354030454,1740186633162,-150.0,0.0001242,2]
[354030457,1740186633176,-500.0,0.00012429,2]
[354030459,1740186633185,-150.0,0.00012436,2]
[354030461,1740186633194,-150.0,0.00012453,2]
[354030463,1740186633204,-150.0,0.00012465,2]
[354030465,1740186633214,-150.0,0.0001247,2]
[354030467,1740186633223,-150.0,0.00012487,2]
[354030469,1740186633233,-150.0,0.00012504,2]
[354030471,1740186633242,-167.0,0.00012505,2]
[354030473,1740186633254,-150.0,0.0001252,2]
[354030475,1740186633263,-150.0,0.00012528,2]
[354030477,1740186633273,-150.0,0.00012537,2]
[354030479,1740186633283,-166.7,0.00012539,2]
[354030481,1740186633292,-1060.0,0.00012542,2]
[354030483,1740186633302,-150.0,0.00012554,2]
[354030485,1740186633311,-150.0,0.00012571,2]
[354030487,1740186633320,-1057.77,0.00012578,2]
[354030489,1740186633329,-150.0,0.00012588,2]
[354030490,1740186633338,-150.0,0.00012591,2]
[354030491,1740186633348,-150.0,0.00012604,2]
[354030492,1740186633358,-150.0,0.00012621,2]
[354030493,1740186633367,-150.0,0.00012638,2]
[354030494,1740186633377,-150.0,0.00012653,2]
[354030495,1740186633387,-150.0,0.00012655,2]
[354030496,1740186633396,-150.0,0.00012672,2]
[354030497,1740186633405,-150.0,0.00012688,2]
[354030498,1740186633414,-150.0,0.00012705,2]
[354030499,1740186633423,-150.0,0.00012716,2]
[354030501,1740186633433,-150.0,0.00012722,2]
[354030503,1740186633442,-150.0,0.00012739,2]
[354030505,1740186633452,-150.0,0.00012756,2]
[354030507,1740186633461,-150.0,0.00012772,2]
[354030509,1740186633471,-150.0,0.00012779,2]
[354030511,1740186633480,-150.0,0.00012789,2]
[354030513,1740186633489,-150.0,0.00012806,2]
[354030515,1740186633500,-500.0,0.00012822,2]
[354030517,1740186633510,-150.0,0.00012823,2]
[354030519,1740186633519,-150.0,0.0001284,2]
[354030521,1740186633529,-150.0,0.00012841,2]
[354030523,1740186633539,-150.0,0.00012856,2]
[354030525,1740186633548,-150.0,0.00012873,2]
[354030527,1740186633557,-150.0,0.0001289,2]
[354030529,1740186633566,-638.0,0.00012904,2]
[354030531,1740186633576,-569.0,0.00012904,2]
[354030532,1740186633585,-538.531,0.00012904,2]
[354030533,1740186633594,-914.138,0.00012904,2]
[354030534,1740186633603,-1424.0,0.00012904,2]
[354030535,1740186633612,-150.0,0.00012904,2]
[354030536,1740186633622,-2708.171,0.00012904,2]
[354030537,1740186633631,-369.116,0.00012904,2]
[354030538,1740186633640,-150.0,0.00012904,2]
[354030539,1740186633649,-150.0,0.00012907,2]
[354030540,1740186633658,-150.0,0.00012924,2]
[354030541,1740186633668,-150.0,0.00012941,2]
[354030542,1740186633677,-150.0,0.00012957,2]
[354030543,1740186633687,-150.0,0.00012967,2]
[354030544,1740186633696,-150.0,0.00012974,2]
[354030546,1740186633705,-150.0,0.00012991,2]
[354030548,1740186633714,-7267.49999996,0.00013,2]
[354030550,1740186633724,-150.0,0.00013008,2]
[354030552,1740186633733,-150.0,0.00013025,2]
[354030554,1740186633743,-150.0,0.00013029,2]
[354030556,1740186633752,-150.0,0.00013041,2]
[354030558,1740186633761,-700.0,0.00013044,2]
[354030560,1740186633770,-150.0,0.00013058,2]
[354030562,1740186633779,-150.0,0.00013075,2]
[354030564,1740186633788,-150.0,0.00013092,2]
[354030566,1740186633797,-150.0,0.00013092,2]
[354030568,1740186633806,-150.0,0.00013092,2]
[354030570,1740186633815,-150.0,0.00013109,2]
[354030571,1740186633824,-150.0,0.00013125,2]
[354030572,1740186633833,-150.0,0.00013142,2]
[354030573,1740186633842,-150.0,0.00013154,2]
[354030574,1740186633851,-150.0,0.00013159,2]
[354030575,1740186633860,-150.0,0.00013176,2]
[354030576,1740186633869,-150.0,0.00013193,2]
[354030577,1740186633878,-1060.0,0.00013202,2]
[354030578,1740186633887,-150.0,0.00013209,2]
[354030579,1740186633896,-150.0,0.00013217,2]
[354030580,1740186633906,-150.0,0.00013226,2]
[354030581,1740186633915,-150.0,0.00013243,2]
[354030582,1740186633924,-150.0,0.0001326,2]
[354030583,1740186633933,-450.21,0.00013263,2]
[354030584,1740186633942,-2969.541,0.0001327,2]
[354030585,1740186633952,-157.94,0.0001327,2]
[354030586,1740186633962,-150.0,0.00013277,2]
[354030587,1740186633972,-150.0,0.0001328,2]
[354030588,1740186633982,-150.0,0.00013293,2]
[354030589,1740186633992,-150.0,0.0001331,2]
[354030590,1740186634001,-800.0,0.00013318,2]
[354030591,1740186634011,-150.0,0.00013327,2]
[354030592,1740186634021,-150.0,0.00013342,2]
[354030593,1740186634031,-150.0,0.00013344,2]
[354030594,1740186634040,-150.0,0.00013361,2]
[354030595,1740186634050,-150.0,0.00013377,2]
[354030596,1740186634059,-150.0,0.00013394,2]
[354030597,1740186634069,-150.0,0.00013405,2]
[354030598,1740186634078,-1000.0,0.00013418,2]
[354030599,1740186634088,-400.150154,0.00013423,2]
[354030600,1740186634097,-150.0,0.00013468,2]
[354030601,1740186634107,-2400.0,0.000135,4]
[354030602,1740186634117,-150.0,0.0001353,2]
[354030603,1740186634126,-500.0,0.00013539,2]
[354030604,1740186634136,-2000.0,0.00013539,2]
[354030605,1740186634145,-200.0,0.00013539,2]
[354030606,1740186634155,-190.47,0.00013561,2]
[354030607,1740186634167,-3136.15838063,0.00013585,2]
[354030608,1740186634180,-150.0,0.00013593,2]
[354030609,1740186634189,-8429.0201,0.00013597,2]
[354030610,1740186634199,-635.3076686,0.00013598,2]
[354030611,1740186634209,-500.0,0.00013599,2]
[354030612,1740186634218,-320.45744024,0.00013599,2]
[354030613,1740186634228,-8784.52690694,0.000136,2]
[354030614,1740186634450,-4933.96135699,0.000136,2]
[354030615,1740186634462,-4800.0,0.000136,4]
[354030616,1740186634473,-150.0,0.00013656,2]
[354030617,1740186634485,-887.48472948,0.00013685,2]
[354030618,1740186634496,-1000.0,0.00013685,2]
[354030619,1740186634507,-1000.0,0.00013685,2]
[354030620,1740186634518,-1000.0,0.00013685,2]
[354030621,1740186634528,-1000.0,0.00013685,2]
[354030622,1740186634538,-1000.0,0.00013685,2]
[354030623,1740186634549,-1000.0,0.00013685,2]
[354030624,1740186634560,-1000.0,0.00013685,2]
[354030625,1740186634572,-653.63405308,0.00013685,2]
[354030626,1740186634586,-346.36594692,0.00013685,2]
[354030627,1740186634597,-459.81955412,0.00013685,2]
[354030628,1740186634610,-433.68891129,0.00013685,2]
[354030629,1740186634632,-106.49153459,0.00013685,2]
[354030630,1740186634644,-1000.0,0.00013685,2]
[354030631,1740186634655,-500.0,0.00013686,2]
[354030632,1740186634669,-5418.3137694,0.00013687,2]
[354030633,1740186634681,-1331.1108742,0.00013687,2]
[354030634,1740186634692,-301.3954005,0.00013687,2]
[354030635,1740186634703,-785.3927213,0.00013687,2]
[354030636,1740186634714,-500.0,0.00013695,2]
[354030637,1740186634725,-500.0,0.00013695,2]
[354030638,1740186634737,-500.0,0.00013695,2]
[354030639,1740186634749,-500.0,0.00013696,2]
[354030640,1740186634760,-2725.81377736,0.00013696,2]
[354030641,1740186634774,-18823.61161113,0.00013696,2]
[354030642,1740186634785,-13559.37689943,0.00013697,2]
[354030643,1740186634796,-500.0,0.00013697,2]
[354030644,1740186634808,-3786.57892,0.00013697,2]
[354030645,1740186634819,-500.0,0.00013697,2]
[354030646,1740186634831,-500.0,0.00013697,2]
[354030647,1740186634844,-500.0,0.00013697,2]
[354030648,1740186634856,-500.0,0.00013697,2]
[354030649,1740186634867,-500.0,0.00013697,2]
[354030650,1740186634878,-500.0,0.00013697,2]
[354030651,1740186634890,-500.0,0.00013697,2]
[354030652,1740186634901,-310.565892,0.00013697,2]
[354030653,1740186634912,-500.0,0.00013697,2]
[354030654,1740186634923,-500.0,0.00013697,2]
[354030655,1740186634934,-639.37640721,0.00013697,2]
[354030656,1740186634944,-500.0,0.00013697,2]
[354030657,1740186634954,-500.0,0.00013697,2]
[354030658,1740186634965,-500.0,0.00013697,2]
[354030659,1740186634976,-692.9,0.00013697,2]
[354030660,1740186634988,-167.641089,0.00013697,2]
[354030661,1740186635001,-500.0,0.00013697,2]
[354030662,1740186635013,-500.0,0.00013697,2]
[354030663,1740186635023,-500.0,0.00013697,2]
[354030664,1740186635032,-500.0,0.00013697,2]
[354030665,1740186635043,-500.0,0.00013697,2]
[354030666,1740186635053,-500.0,0.00013697,2]
[354030667,1740186635063,-500.0,0.00013697,2]
[354030668,1740186635074,-500.0,0.00013697,2]
[354030669,1740186635085,-22.95732169,0.00013697,2]
[354030670,1740186635100,-477.04267831,0.00013697,2]
[354030671,1740186635112,-500.0,0.00013697,2]
[354030672,1740186635123,-500.0,0.00013697,2]
[354030673,1740186635134,-500.0,0.00013697,2]
[354030674,1740186635144,-512.24,0.00013697,2]
[354030675,1740186635154,-500.0,0.00013697,2]
[354030676,1740186635165,-2.60077724,0.00013697,2]
[354030679,1740186637515,-497.39922276,0.00013697,2]
[354030680,1740186637526,-265.29347259,0.00013697,2]
[354030681,1740186637540,-234.70652741,0.00013697,2]
[354030682,1740186637550,-500.0,0.00013697,2]
[354030683,1740186637561,-500.0,0.00013697,2]
[354030684,1740186637571,-500.0,0.00013697,2]
[354030685,1740186637582,-500.0,0.00013697,2]
[354030686,1740186637592,-500.0,0.00013697,2]
[354030687,1740186637602,-500.0,0.00013697,2]
[354030688,1740186637613,-500.0,0.00013697,2]
[354030689,1740186637623,-500.0,0.00013697,2]
[354030690,1740186637634,-500.0,0.00013697,2]
[354030691,1740186637644,-500.0,0.00013697,2]
[354030692,1740186637655,-500.0,0.00013697,2]
[354030693,1740186637668,-500.0,0.00013697,2]
[354030694,1740186637678,-85.91295259,0.00013697,2]
[354030695,1740186637690,-414.08704741,0.00013697,2]
[354030696,1740186637701,-500.0,0.00013697,2]
[354030697,1740186637711,-319.3405186,0.00013697,2]
[354030698,1740186637724,-180.6594814,0.00013697,2]
[354030699,1740186637734,-500.0,0.00013697,2]
[354030700,1740186637745,-500.0,0.00013697,2]
[354030701,1740186637755,-500.0,0.00013697,2]
[354030702,1740186637766,-500.0,0.00013697,2]
[354030703,1740186637777,-500.0,0.00013697,2]
[354030704,1740186637787,-500.0,0.00013697,2]
[354030705,1740186637798,-500.0,0.00013697,2]
[354030706,1740186637809,-500.0,0.00013697,2]
[354030707,1740186637820,-500.0,0.00013697,2]
[354030708,1740186637831,-500.0,0.00013697,2]
[354030709,1740186637841,-500.0,0.00013697,2]
[354030710,1740186637852,-500.0,0.00013697,2]
[354030711,1740186637863,-500.0,0.00013697,2]
[354030713,1740186637873,-500.0,0.00013697,2]
[354030715,1740186637883,-500.0,0.00013697,2]
[354030717,1740186637894,-500.0,0.00013697,2]
[354030719,1740186637904,-500.0,0.00013697,2]
[354030721,1740186637914,-500.0,0.00013697,2]
[354030723,1740186637927,-500.0,0.00013697,2]
[354030725,1740186637938,-500.0,0.00013697,2]
[354030727,1740186637949,-500.0,0.00013697,2]
[354030729,1740186637960,-500.0,0.00013697,2]
[354030731,1740186637970,-500.0,0.00013697,2]
[354030733,1740186637981,-167.641087,0.00013697,2]
[354030736,1740186637991,-500.0,0.00013697,2]
[354030738,1740186638002,-500.0,0.00013697,2]
[354030740,1740186638012,-34.56943169,0.00013697,2]
[354030742,1740186638025,-465.43056831,0.00013697,2]
[354030744,1740186638036,-42.62745638,0.00013697,2]
[354030747,1740186638049,-457.37254362,0.00013697,2]
[354030749,1740186638060,-334.97144502,0.00013697,2]
[354030752,1740186638076,-165.02855498,0.00013697,2]
[354030754,1740186638087,-500.0,0.00013697,2]
[354030756,1740186638097,-317.08279328,0.00013697,2]
[354030758,1740186638110,-182.91720672,0.00013697,2]
[354030760,1740186638120,-500.0,0.00013697,2]
[354030763,1740186638130,-384.131937,0.00013697,2]
[354030765,1740186638141,-500.0,0.00013697,2]
[354030767,1740186638151,-500.0,0.00013697,2]
[354030769,1740186638162,-500.0,0.00013697,2]
[354030771,1740186638174,-500.0,0.00013697,2]
[354030772,1740186638186,-500.0,0.00013697,2]
[354030774,1740186638196,-500.0,0.00013697,2]
[354030776,1740186638206,-500.0,0.00013697,2]
[354030779,1740186638216,-500.0,0.00013697,2]
[354030781,1740186638226,-885.48,0.00013697,2]
[354030783,1740186638236,-500.0,0.00013697,2]
[354030785,1740186638245,-960.58,0.00013697,2]
[354030787,1740186638255,-500.0,0.00013697,2]
[354030789,1740186638265,-500.0,0.00013697,2]
[354030791,1740186638275,-8297.30155759,0.00013698,2]
[354030943,1740186639702,-481.9523482,0.00013343,2]
[354031088,1740186642705,-15.1876518,0.00013343,2]
[354031091,1740186642715,-5186.8596,0.00013599,2]
[354031093,1740186642724,-256.34089574,0.00013686,2]
[354031094,1740186642734,-500.0,0.00013695,2]
[354031095,1740186642743,-504.75,0.00013697,2]
[354031096,1740186642752,-500.0,0.00013697,2]
[354031097,1740186642762,-500.0,0.00013697,2]
[354031098,1740186642771,-743.37793005,0.00013698,2]
[354031099,1740186642828,-41657.38558043,0.00013698,2]
[354031100,1740186642838,-5800.0,0.00013698,2]
[354031101,1740186642847,-1837.07549744,0.00013698,2]
[354031102,1740186642856,-500.0,0.00013698,2]
[354031103,1740186642865,-500.0,0.00013698,2]
[354031104,1740186642875,-500.0,0.00013698,2]
[354031105,1740186642884,-500.0,0.00013698,2]
[354031106,1740186642893,-500.0,0.00013698,2]
[354031107,1740186642903,-500.0,0.00013698,2]
[354031108,1740186642912,-500.0,0.00013698,2]
[354031109,1740186642922,-500.0,0.00013699,2]
[354031110,1740186642931,-500.0,0.00013699,2]
[354031111,1740186642940,-500.0,0.00013699,2]
[354031112,1740186642950,-500.0,0.00013699,2]
[354031113,1740186642960,-4000.0,0.00013699,2]